fUST/lending_fUST_20240528
["ID","MTS","AMOUNT","RATE_DAILY","PERIOD"]
[328064131,1716828675716,-558.46848571,0.00028493,4]
[328064132,1716828675725,-1050.35,0.00028493,4]
[328064133,1716828675734,-500.0,0.00028493,4]
[328064134,1716828675743,-892.42,0.00028493,4]
[328064135,1716828675752,-500.0,0.00028493,4]
[328064136,1716828675762,-500.0,0.00028493,4]
[328064137,1716828675771,-500.0,0.00028493,4]
[328064138,1716828675784,-500.0,0.00028493,4]
[328064139,1716828675793,-500.0,0.00028493,2]
[328064140,1716828675802,-651.97,0.00028493,4]
[328064141,1716828675813,-1363.75,0.00028493,4]
[328064142,1716828675822,-593.66,0.00028493,4]
[328064143,1716828675831,-1131.43,0.00028493,4]
[328064144,1716828675840,-539.52,0.00028493,4]
[328064145,1716828675852,-500.0,0.00028493,4]
[328064146,1716828675861,-500.0,0.00028493,4]
[328064147,1716828675871,-7625.13,0.00028493,4]
[328064148,1716828675879,-500.0,0.00028493,4]
[328064149,1716828675888,-500.0,0.00028493,4]
[328064150,1716828675897,-605.98532752,0.00028493,4]
[328064151,1716828675907,-500.0,0.00028493,4]
[328064152,1716828675916,-574.45,0.00028493,4]
[328064153,1716828675925,-1087.57,0.00028493,4]
[328064154,1716828675934,-632.54,0.00028493,4]
[328064155,1716828675944,-6361.41,0.00028493,4]
[328064156,1716828675954,-1312.75,0.00028493,4]
[328064157,1716828675963,-633.72,0.00028493,4]
[328064158,1716828675972,-500.0,0.00028493,4]
[328064159,1716828675981,-500.0,0.00028493,4]
[328064160,1716828675990,-500.0,0.00028493,4]
[328064161,1716828675999,-587.32,0.00028493,4]
[328064162,1716828676008,-642.28,0.00028493,4]
[328064163,1716828676018,-500.0,0.00028493,4]
[328064164,1716828676027,-4795.75,0.00028493,4]
[328064165,1716828676037,-242.53027116,0.00028493,4]
[328064166,1716828676047,-330.51440541,0.00028493,4]
[328064167,1716828676057,-500.0,0.00028493,4]
[328064168,1716828676066,-2064.41,0.00028493,4]
[328064169,1716828676075,-427.85418326,0.00028493,4]
[328064170,1716828676086,-500.0,0.00028493,4]
[328064171,1716828676095,-500.0,0.00028493,4]
[328064172,1716828676105,-500.0,0.00028493,4]
[328064173,1716828676114,-500.0,0.00028493,4]
[328064174,1716828676124,-500.0,0.00028493,4]
[328064175,1716828676133,-500.0,0.00028493,4]
[328064176,1716828676142,-500.0,0.00028493,4]
[328064177,1716828676151,-500.0,0.00028493,4]
[328064178,1716828676160,-569.2065494,0.00028493,4]
[328064179,1716828676170,-500.0,0.00028493,4]
[328064180,1716828676179,-472.63521685,0.00028493,4]
[328064181,1716828676188,-500.0,0.00028493,4]
[328064182,1716828676197,-500.0,0.00028493,4]
[328064183,1716828676207,-500.0,0.00028493,4]
[328064184,1716828676216,-500.0,0.00028493,4]
[328064185,1716828676225,-500.0,0.00028493,4]
[328064186,1716828676235,-2566.21,0.00028493,2]
[328064187,1716828676244,-756.1,0.00028493,4]
[328064188,1716828676253,-500.0,0.00028493,4]
[328064189,1716828676262,-510.95,0.00028493,4]
[328064190,1716828676271,-801.47,0.00028493,4]
[328064191,1716828676281,-506.82,0.00028493,4]
[328064192,1716828676290,-1002.65,0.00028493,4]
[328064193,1716828676299,-1000.0,0.00028493,2]
[328064194,1716828676310,-545.67413118,0.00028493,4]
[328064195,1716828676320,-500.0,0.00028493,4]
[328064196,1716828676329,-625.4,0.00028493,4]
[328064197,1716828676338,-605.1,0.00028493,4]
[328064198,1716828676348,-500.0,0.00028493,2]
[328064199,1716828676360,-500.0,0.00028493,4]
[328064200,1716828676369,-802.98,0.00028493,4]
[328064201,1716828676378,-2197.41,0.00028493,4]
[328064202,1716828676387,-17023.71,0.00028493,4]
[328064203,1716828676398,-544.16,0.00028493,4]
[328064204,1716828676407,-500.0,0.00028493,4]
[328064205,1716828676417,-879.06,0.00028493,4]
[328064206,1716828676426,-500.0,0.00028493,4]
[328064207,1716828676435,-726.78,0.00028493,4]
[328064208,1716828676445,-500.0,0.00028493,4]
[328064209,1716828676455,-6977.2,0.00028493,4]
[328064210,1716828676464,-750.83,0.00028493,4]
[328064211,1716828676474,-2138.53,0.00028493,4]
[328064212,1716828676483,-500.0,0.00028493,4]
[328064213,1716828676493,-20833.29,0.00028493,4]
[328064214,1716828676502,-5392.04,0.00028493,4]
[328064215,1716828676511,-786.56,0.00028493,4]
[328064216,1716828676520,-805.12,0.00028493,4]
[328064217,1716828676530,-500.0,0.00028493,4]
[328064218,1716828676539,-2243.3,0.00028493,4]
[328064219,1716828676548,-154.42348508,0.00028539,2]
[328064220,1716828676559,-1628.7012624,0.00028543,2]
[328064221,1716828676568,-968.26312279,0.00028558,2]
[328064222,1716828676578,-1628.7012624,0.00028573,2]
[328064223,1716828676587,-968.26312279,0.00028623,2]
[328064224,1716828676597,-269.52520206,0.00028688,2]
[328064225,1716828676606,-500.0,0.00028767,2]
[328064226,1716828676615,-500.0,0.00028767,4]
[328064227,1716828676625,-500.0,0.00028767,4]
[328064228,1716828676634,-824.6,0.00028767,4]
[328064229,1716828676643,-500.0,0.00028767,4]
[328064230,1716828676652,-500.0,0.00028767,4]
[328064231,1716828676662,-675.69,0.00028767,4]
[328064232,1716828676671,-500.0,0.00028767,4]
[328064233,1716828676680,-1000.0,0.00028767,5]
[328064234,1716828676689,-811.63,0.00028767,4]
[328064235,1716828676699,-500.0,0.00028767,4]
[328064236,1716828676708,-500.0,0.00028767,4]
[328064237,1716828676717,-500.0,0.00028767,4]
[328064238,1716828676726,-726.55,0.00028767,4]
[328064239,1716828676736,-500.0,0.00028767,4]
[328064240,1716828676745,-500.0,0.00028767,4]
[328064241,1716828676754,-500.0,0.00028767,4]
[328064242,1716828676764,-500.0,0.00028767,4]
[328064243,1716828676778,-500.0,0.00028767,4]
[328064244,1716828676787,-626.93,0.00028767,4]
[328064245,1716828676796,-455.35622973,0.00028767,4]
[328064246,1716828676807,-500.0,0.00028767,4]
[328064247,1716828676816,-500.0,0.00028767,4]
[328064248,1716828676826,-500.0,0.00028767,4]
[328064249,1716828676835,-1224.04,0.00028767,4]
[328064250,1716828676845,-500.0,0.00028767,4]
[328064251,1716828676855,-500.0,0.00028767,4]
[328064252,1716828676864,-535.59,0.00028767,4]
[328064253,1716828676874,-500.0,0.00028767,4]
[328064254,1716828676882,-500.0,0.00028767,4]
[328064255,1716828676891,-515.43,0.00028767,4]
[328064256,1716828676901,-463.13988347,0.00028767,4]
[328064257,1716828676910,-531.54,0.00028767,4]
[328064258,1716828676919,-500.0,0.00028767,4]
[328064259,1716828676928,-500.0,0.00028767,4]
[328064260,1716828676937,-659.49,0.00028767,4]
[328064261,1716828676947,-500.0,0.00028767,4]
[328064262,1716828676956,-500.0,0.00028767,4]
[328064263,1716828676966,-500.0,0.00028767,4]
[328064264,1716828676975,-413.79890873,0.00028767,4]
[328064265,1716828676984,-500.0,0.00028767,4]
[328064266,1716828676993,-1246.45,0.00028767,4]
[328064267,1716828677002,-504.45,0.00028767,4]
[328064268,1716828677012,-682.29,0.00028767,4]
[328064269,1716828677021,-500.0,0.00028767,4]
[328064270,1716828677030,-500.0,0.00028767,4]
[328064271,1716828677041,-550.01,0.00028767,4]
[328064272,1716828677050,-851.4,0.00028767,4]
[328064273,1716828677062,-500.0,0.00028767,4]
[328064274,1716828677071,-547.12943667,0.00028767,4]
[328064275,1716828677080,-1016.02,0.00028767,4]
[328064276,1716828677089,-500.0,0.00028767,4]
[328064277,1716828677099,-728.84,0.00028767,4]
[328064278,1716828677108,-1130.97,0.00028767,4]
[328064279,1716828677118,-1216.29,0.00028767,4]
[328064280,1716828677127,-2810.41,0.00028767,4]
[328064281,1716828677137,-500.0,0.00028767,4]
[328064282,1716828677148,-2432.96,0.00028767,4]
[328064283,1716828677158,-518.2,0.00028767,4]
[328064284,1716828677167,-509.77,0.00028767,4]
[328064285,1716828677177,-500.0,0.00028767,4]
[328064286,1716828677186,-500.0,0.00028767,4]
[328064287,1716828677195,-2823.17,0.00028767,4]
[328064288,1716828677205,-413.62913733,0.00028767,4]
[328064289,1716828677215,-500.0,0.00028767,4]
[328064290,1716828677224,-500.0,0.00028767,4]
[328064291,1716828677234,-500.0,0.00028767,4]
[328064292,1716828677244,-639.85,0.00028767,4]
[328064293,1716828677254,-760.94,0.00028767,4]
[328064294,1716828677263,-500.0,0.00028767,4]
[328064295,1716828677272,-500.0,0.00028767,4]
[328064296,1716828677281,-625.4,0.00028767,4]
[328064297,1716828677291,-398.54894997,0.00028767,4]
[328064298,1716828677300,-594.07,0.00028767,4]
[328064299,1716828677310,-500.0,0.00028767,4]
[328064300,1716828677319,-500.0,0.00028767,4]
[328064301,1716828677328,-984.46,0.00028767,4]
[328064302,1716828677338,-2041.19,0.00028767,4]
[328064303,1716828677348,-198.910565,0.00028767,4]
[328064304,1716828677357,-500.0,0.00028767,4]
[328064305,1716828677366,-2214.31,0.00028767,4]
[328064306,1716828677375,-1654.46,0.00028767,4]
[328064307,1716828677384,-575.36565762,0.00028767,4]
[328064308,1716828677393,-591.11,0.00028767,4]
[328064309,1716828677403,-924.61,0.00028767,4]
[328064310,1716828677412,-500.0,0.00028767,4]
[328064311,1716828677421,-161.8769064,0.00028767,4]
[328064312,1716828677430,-500.0,0.00028767,4]
[328064313,1716828677439,-500.0,0.00028767,4]
[328064314,1716828677448,-500.0,0.00028767,4]
[328064315,1716828677457,-1453.45,0.00028767,4]
[328064316,1716828677466,-641.76,0.00028767,4]
[328064317,1716828677476,-641.56,0.00028767,4]
[328064318,1716828677484,-500.0,0.00028767,4]
[328064319,1716828677494,-500.0,0.00028767,4]
[328064320,1716828677503,-500.0,0.00028767,4]
[328064321,1716828677512,-500.0,0.00028767,4]
[328064322,1716828677521,-500.0,0.00028767,4]
[328064323,1716828677531,-500.0,0.00028767,4]
[328064324,1716828677540,-500.0,0.00028767,4]
[328064325,1716828677549,-500.0,0.00028767,4]
[328064326,1716828677560,-949.44,0.00028767,4]
[328064327,1716828677569,-3125.75,0.00028767,4]
[328064328,1716828677579,-866.38,0.00028767,4]
[328064329,1716828677589,-1068.09,0.00028767,4]
[328064330,1716828677703,-831.3,0.00028767,4]
[328064331,1716828677713,-654.84,0.00028767,4]
[328064332,1716828677723,-1063.2,0.00028767,4]
[328064333,1716828677733,-988.59,0.00028767,4]
[328064334,1716828677743,-2485.43,0.00028767,4]
[328064335,1716828677752,-691.66,0.00028767,4]
[328064336,1716828677762,-500.0,0.00028767,4]
[328064337,1716828677774,-500.0,0.00028767,4]
[328064338,1716828677787,-563.58,0.00028767,4]
[328064339,1716828677796,-500.0,0.00028767,4]
[328064340,1716828677806,-3918.91,0.00028767,4]
[328064341,1716828677817,-500.0,0.00028767,4]
[328064342,1716828677826,-520.07,0.00028767,4]
[328064343,1716828677835,-1269.93,0.00028767,4]
[328064344,1716828677844,-1098.77,0.00028767,4]
[328064345,1716828677856,-500.0,0.00028767,4]
[328064346,1716828677866,-500.0,0.00028767,4]
[328064347,1716828677875,-500.0,0.00028767,4]
[328064348,1716828677886,-500.0,0.00028767,4]
[328064349,1716828677895,-3693.27,0.00028767,4]
[328064350,1716828677904,-158.36107985,0.00028767,4]
[328064351,1716828677914,-500.0,0.00028767,4]
[328064352,1716828677924,-530.15,0.00028767,4]
[328064353,1716828677933,-536.32,0.00028767,4]
[328064354,1716828677942,-500.0,0.00028767,4]
[328064355,1716828677951,-611.73,0.00028767,4]
[328064356,1716828677961,-500.0,0.00028767,4]
[328064357,1716828677970,-500.0,0.00028767,4]
[328064358,1716828677979,-725.57,0.00028767,4]
[328064359,1716828677989,-500.0,0.00028767,4]
[328064360,1716828677999,-1157.28,0.00028767,2]
[328064361,1716828678008,-500.0,0.00028767,4]
[328064362,1716828678018,-504.63,0.00028767,4]
[328064363,1716828678027,-500.0,0.00028767,4]
[328064364,1716828678037,-1823.06,0.00028767,4]
[328064365,1716828678046,-601.37,0.00028767,4]
[328064366,1716828678055,-500.0,0.00028767,4]
[328064367,1716828678065,-617.72,0.00028767,4]
[328064368,1716828678074,-500.0,0.00028767,4]
[328064369,1716828678085,-2675.35,0.00028767,4]
[328064370,1716828678095,-500.0,0.00028767,4]
[328064371,1716828678104,-596.2,0.00028767,4]
[328064372,1716828678113,-1132.79,0.00028767,4]
[328064373,1716828678123,-815.6,0.00028767,4]
[328064374,1716828678132,-500.0,0.00028767,4]
[328064375,1716828678142,-500.0,0.00028767,4]
[328064376,1716828678151,-500.0,0.00028767,4]
[328064377,1716828678160,-500.0,0.00028767,4]
[328064378,1716828678170,-500.0,0.00028767,4]
[328064379,1716828678179,-669.54,0.00028767,4]
[328064380,1716828678188,-606.63,0.00028767,4]
[328064381,1716828678198,-500.0,0.00028767,4]
[328064382,1716828678212,-500.0,0.00028767,4]
[328064383,1716828678221,-500.0,0.00028767,4]
[328064384,1716828678231,-500.0,0.00028767,4]
[328064385,1716828678240,-1859.98,0.00028767,4]
[328064386,1716828678250,-500.0,0.00028767,4]
[328064387,1716828678260,-945.57,0.00028767,4]
[328064388,1716828678270,-500.0,0.00028767,4]
[328064389,1716828678280,-1646.07,0.00028767,4]
[328064390,1716828678290,-500.0,0.00028767,4]
[328064391,1716828678299,-211.59446933,0.00028767,4]
[328064392,1716828678308,-500.0,0.00028767,4]
[328064393,1716828678318,-500.0,0.00028767,4]
[328064394,1716828678327,-500.0,0.00028767,4]
[328064395,1716828678335,-250.0,0.00028767,4]
[328064396,1716828678347,-638.7,0.00028767,4]
[328064397,1716828678357,-574.14,0.00028767,4]
[328064398,1716828678366,-500.0,0.00028767,4]
[328064399,1716828678376,-500.0,0.00028767,4]
[328064400,1716828678386,-2360.67,0.00028767,4]
[328064401,1716828678395,-500.0,0.00028767,4]
[328064402,1716828678404,-1074.44,0.00028767,4]
[328064403,1716828678413,-921.35,0.00028767,4]
[328064404,1716828678423,-576.69,0.00028767,4]
[328064405,1716828678432,-1212.06,0.00028767,4]
[328064406,1716828678442,-12483.57,0.00028767,4]
[328064407,1716828678451,-528.21,0.00028767,4]
[328064408,1716828678461,-500.0,0.00028767,4]
[328064409,1716828678471,-500.0,0.00028767,4]
[328064410,1716828678481,-1012.48,0.00028767,4]
[328064411,1716828678490,-500.0,0.00028767,4]
[328064412,1716828678500,-773.35,0.00028767,4]
[328064413,1716828678509,-500.0,0.00028767,4]
[328064414,1716828678518,-910.69,0.00028767,4]
[328064415,1716828678528,-500.0,0.00028767,4]
[328064416,1716828678537,-500.0,0.00028767,4]
[328064417,1716828678547,-322.84774781,0.00028767,4]
[328064418,1716828678556,-704.47,0.00028767,4]
[328064419,1716828678565,-500.0,0.00028767,4]
[328064420,1716828678575,-790.95,0.00028767,4]
[328064421,1716828678584,-500.0,0.00028767,4]
[328064422,1716828678594,-500.0,0.00028767,4]
[328064423,1716828678603,-500.0,0.00028767,4]
[328064424,1716828678613,-814.71,0.00028767,4]
[328064425,1716828678622,-2637.19,0.00028767,4]
[328064426,1716828678631,-571.91868745,0.00028767,4]
[328064427,1716828678640,-500.0,0.00028767,4]
[328064428,1716828678649,-500.0,0.00028767,4]
[328064429,1716828678658,-736.82,0.00028767,4]
[328064430,1716828678667,-952.11,0.00028767,4]
[328064431,1716828678676,-500.0,0.00028767,4]
[328064432,1716828678685,-500.0,0.00028767,4]
[328064433,1716828678694,-529.54,0.00028767,4]
[328064434,1716828678703,-500.0,0.00028767,4]
[328064435,1716828678712,-500.0,0.00028767,4]
[328064436,1716828678721,-576.92,0.00028767,4]
[328064437,1716828678730,-594.73,0.00028767,4]
[328064438,1716828678740,-500.0,0.00028767,4]
[328064439,1716828678749,-500.0,0.00028767,4]
[328064440,1716828678758,-669.39,0.00028767,4]
[328064441,1716828678771,-1352.61,0.00028767,4]
[328064442,1716828678781,-474.43809117,0.00028767,4]
[328064443,1716828678790,-667.65,0.00028767,4]
[328064444,1716828678800,-562.4,0.00028767,4]
[328064445,1716828678808,-3442.49,0.00028767,4]
[328064446,1716828678819,-500.0,0.00028767,4]
[328064447,1716828678828,-500.0,0.00028767,4]
[328064448,1716828678837,-500.0,0.00028767,4]
[328064449,1716828678847,-507.09305696,0.00028767,4]
[328064450,1716828678859,-500.0,0.00028767,4]
[328064451,1716828678870,-300.0,0.00028767,4]
[328064452,1716828678879,-550.83,0.00028767,4]
[328064453,1716828678888,-261.23448277,0.00028767,4]
[328064454,1716828678898,-500.0,0.00028767,4]
[328064455,1716828678907,-776.28,0.00028767,4]
[328064456,1716828678917,-3257.38,0.00028767,4]
[328064457,1716828678926,-2136.16,0.00028767,4]
[328064458,1716828678936,-2740.36,0.00028767,4]
[328064459,1716828678945,-1654.94,0.00028767,4]
[328064460,1716828678954,-554.59,0.00028767,4]
[328064461,1716828678963,-500.0,0.00028767,4]
[328064462,1716828678972,-1514.86,0.00028767,4]
[328064463,1716828678982,-500.0,0.00028767,4]
[328064464,1716828678991,-500.0,0.00028767,4]
[328064465,1716828679000,-500.0,0.00028767,4]
[328064466,1716828679009,-500.0,0.00028767,4]
[328064467,1716828679018,-500.0,0.00028767,4]
[328064468,1716828679028,-500.0,0.00028767,4]
[328064469,1716828679037,-1050.35,0.00028767,4]
[328064470,1716828679046,-500.0,0.00028767,4]
[328064471,1716828679055,-892.42,0.00028767,4]
[328064472,1716828679066,-500.0,0.00028767,4]
[328064473,1716828679076,-500.0,0.00028767,4]
[328064474,1716828679084,-500.0,0.00028767,4]
[328064475,1716828679094,-500.0,0.00028767,4]
[328064476,1716828679105,-500.0,0.00028767,2]
[328064477,1716828679115,-651.97,0.00028767,4]
[328064478,1716828679124,-1363.75,0.00028767,4]
[328064479,1716828679133,-593.66,0.00028767,4]
[328064480,1716828679142,-1131.43,0.00028767,4]
[328064481,1716828679152,-539.52,0.00028767,4]
[328064482,1716828679161,-500.0,0.00028767,4]
[328064483,1716828679171,-500.0,0.00028767,4]
[328064484,1716828679181,-7625.13,0.00028767,4]
[328064485,1716828679191,-500.0,0.00028767,4]
[328064486,1716828679200,-246.53493261,0.00028767,4]
[328064487,1716828679859,-168.93836115,0.00028767,4]
[328064488,1716828679870,-500.0,0.00028767,4]
[328064489,1716828679879,-574.45,0.00028767,4]
[328064490,1716828679889,-1087.57,0.00028767,4]
[328064491,1716828679899,-632.54,0.00028767,4]
[328064492,1716828679909,-1312.75,0.00028767,4]
[328064493,1716828679919,-633.72,0.00028767,4]
[328064494,1716828679928,-6361.41,0.00028767,4]
[328064495,1716828679938,-500.0,0.00028767,4]
[328064496,1716828679948,-500.0,0.00028767,4]
[328064497,1716828679958,-500.0,0.00028767,4]
[328064498,1716828679967,-587.32,0.00028767,4]
[328064499,1716828679977,-642.28,0.00028767,4]
[328064500,1716828679987,-203.12868192,0.00028767,4]
[328064501,1716828679996,-4795.75,0.00028767,4]
[328064502,1716828680006,-500.0,0.00028767,4]
[328064503,1716828680016,-2064.41,0.00028767,4]
[328064504,1716828680026,-500.0,0.00028767,4]
[328064505,1716828680035,-500.0,0.00028767,4]
[328064506,1716828680045,-500.0,0.00028767,4]
[328064507,1716828680055,-500.0,0.00028767,4]
[328064508,1716828680066,-500.0,0.00028767,4]
[328064509,1716828680075,-500.0,0.00028767,4]
[328064510,1716828680085,-506.45901683,0.00028767,4]
[328064511,1716828680094,-500.0,0.00028767,4]
[328064512,1716828680103,-500.0,0.00028767,4]
[328064513,1716828680112,-500.0,0.00028767,4]
[328064514,1716828680121,-500.0,0.00028767,4]
[328064515,1716828680131,-500.0,0.00028767,4]
[328064516,1716828680141,-223.64686797,0.00028767,4]
[328064517,1716828680152,-500.0,0.00028767,4]
[328064518,1716828680161,-2566.21,0.00028767,2]
[328064519,1716828680170,-756.1,0.00028767,4]
[328064520,1716828680179,-500.0,0.00028767,4]
[328064521,1716828680188,-510.95,0.00028767,4]
[328064522,1716828680197,-801.47,0.00028767,4]
[328064523,1716828680206,-506.82,0.00028767,4]
[328064524,1716828680215,-1002.65,0.00028767,4]
[328064525,1716828680224,-1000.0,0.00028767,2]
[328064526,1716828680233,-500.0,0.00028767,4]
[328064527,1716828680242,-625.4,0.00028767,4]
[328064528,1716828680251,-605.1,0.00028767,4]
[328064529,1716828680259,-511.3985852,0.00028767,2]
[328064530,1716828680268,-500.0,0.00028767,4]
[328064531,1716828680277,-802.98,0.00028767,4]
[328064532,1716828680286,-2197.41,0.00028767,4]
[328064533,1716828680295,-17023.71,0.00028767,4]
[328064534,1716828680304,-544.16,0.00028767,4]
[328064535,1716828680314,-500.0,0.00028767,4]
[328064536,1716828680323,-879.06,0.00028767,4]
[328064537,1716828680332,-500.0,0.00028767,4]
[328064538,1716828680341,-726.78,0.00028767,4]
[328064539,1716828680350,-500.0,0.00028767,4]
[328064540,1716828680359,-6977.2,0.00028767,4]
[328064541,1716828680368,-750.83,0.00028767,4]
[328064542,1716828680377,-2138.53,0.00028767,4]
[328064543,1716828680386,-500.0,0.00028767,4]
[328064544,1716828680395,-20833.29,0.00028767,4]
[328064545,1716828680404,-5392.04,0.00028767,4]
[328064546,1716828680414,-786.56,0.00028767,4]
[328064547,1716828680423,-805.12,0.00028767,4]
[328064548,1716828680432,-509.65705352,0.00028767,4]
[328064549,1716828680441,-2032.74995358,0.00028767,4]
[328064550,1716828680453,-210.55004642,0.00028767,4]
[328064551,1716828680463,-8158.53618031,0.000288,2]
[328064552,1716828680642,-1379.511748,0.00025,2]
[328064553,1716828680651,-1379.511748,0.00026442,2]
[328064554,1716828680660,-1379.511748,0.00026463,2]
[328064555,1716828680669,-1379.511748,0.00026473,2]
[328064556,1716828680678,-1379.511748,0.00026473,2]
[328064557,1716828680687,-521.450653,0.0002656,2]
[328064558,1716828680696,-1379.511748,0.0002656,2]
[328064559,1716828680706,-521.450653,0.00026575,2]
[328064560,1716828680715,-521.450653,0.00026575,2]
[328064561,1716828680726,-521.450653,0.0002671,2]
[328064562,1716828680735,-510.66133481,0.00027671,4]
[328064563,1716828680744,-3657.81,0.00028219,4]
[328064564,1716828680753,-3657.81,0.00028493,4]
[328064565,1716828680762,-3657.81,0.00028767,4]
[328064566,1716828680775,-201690.46705846,0.000288,2]
[328064567,1716828680785,-968.26312279,0.00028878,2]
[328064568,1716828680794,-156.05,0.0002897,35]
[328064569,1716828680803,-161.19769318,0.00028989,2]
[328064570,1716828680815,-170.77628548,0.00029,30]
[328064571,1716828680824,-300.0,0.00029,2]
[328064572,1716828680832,-7621.39255084,0.00029,7]
[328064573,1716828680841,-379.06487118,0.00029041,2]
[328064574,1716828680853,-500.0,0.00029041,4]
[328064575,1716828680862,-500.0,0.00029041,4]
[328064576,1716828680871,-824.6,0.00029041,4]
[328064577,1716828680880,-500.0,0.00029041,4]
[328064578,1716828680889,-500.0,0.00029041,4]
[328064579,1716828680898,-675.69,0.00029041,4]
[328064580,1716828680907,-580.75113017,0.00029041,4]
[328064581,1716828680916,-1000.59223276,0.00029041,5]
[328064582,1716828680925,-811.63,0.00029041,4]
[328064583,1716828680934,-500.0,0.00029041,4]
[328064584,1716828680943,-500.0,0.00029041,4]
[328064585,1716828680952,-500.0,0.00029041,4]
[328064586,1716828680961,-726.55,0.00029041,4]
[328064587,1716828680970,-641.24156653,0.00029041,4]
[328064588,1716828680979,-500.0,0.00029041,4]
[328064589,1716828680988,-500.0,0.00029041,4]
[328064590,1716828680997,-500.0,0.00029041,4]
[328064591,1716828681006,-500.0,0.00029041,4]
[328064592,1716828681015,-626.93,0.00029041,4]
[328064593,1716828681024,-500.0,0.00029041,4]
[328064594,1716828681033,-500.0,0.00029041,4]
[328064595,1716828681042,-500.0,0.00029041,4]
[328064596,1716828681051,-1224.04,0.00029041,4]
[328064597,1716828681060,-500.0,0.00029041,4]
[328064598,1716828681072,-500.0,0.00029041,4]
[328064599,1716828681081,-535.59,0.00029041,4]
[328064600,1716828681089,-500.0,0.00029041,4]
[328064601,1716828681099,-500.0,0.00029041,4]
[328064602,1716828681108,-515.43,0.00029041,4]
[328064603,1716828681117,-531.54,0.00029041,4]
[328064604,1716828681221,-500.0,0.00029041,4]
[328064605,1716828681231,-500.0,0.00029041,4]
[328064606,1716828681241,-659.49,0.00029041,4]
[328064607,1716828681250,-500.0,0.00029041,4]
[328064608,1716828681259,-500.0,0.00029041,4]
[328064609,1716828681269,-500.0,0.00029041,4]
[328064610,1716828681279,-500.0,0.00029041,4]
[328064611,1716828681288,-1246.45,0.00029041,4]
[328064612,1716828681297,-504.45,0.00029041,4]
[328064613,1716828681308,-682.29,0.00029041,4]
[328064614,1716828681321,-569.56811808,0.00029041,4]
[328064615,1716828681331,-550.01,0.00029041,4]
[328064616,1716828681340,-851.4,0.00029041,4]
[328064617,1716828681349,-500.0,0.00029041,4]
[328064618,1716828681359,-1016.02,0.00029041,4]
[328064619,1716828681369,-500.0,0.00029041,4]
[328064620,1716828681379,-728.84,0.00029041,4]
[328064621,1716828681389,-1130.97,0.00029041,4]
[328064622,1716828681399,-1216.29,0.00029041,4]
[328064623,1716828681408,-2810.41,0.00029041,4]
[328064624,1716828681418,-500.0,0.00029041,4]
[328064625,1716828681427,-2432.96,0.00029041,4]
[328064626,1716828681437,-518.2,0.00029041,4]
[328064627,1716828681446,-509.77,0.00029041,4]
[328064628,1716828681456,-500.0,0.00029041,4]
[328064629,1716828681465,-500.0,0.00029041,4]
[328064630,1716828681475,-2823.17,0.00029041,4]